lending/lending_fUSD_20240710
["ID","MTS","AMOUNT","RATE_DAILY","PERIOD"]
[331608530,1720578761287,-500.0,0.00014104,2]
[331608531,1720578761296,-2671.29,0.00014104,2]
[331608532,1720578761305,-500.0,0.00014104,2]
[331608533,1720578761314,-500.0,0.00014104,2]
[331608534,1720578761324,-500.0,0.00014104,2]
[331608535,1720578761332,-500.0,0.00014104,2]
[331608536,1720578761341,-5361.09,0.00014104,2]
[331608537,1720578761351,-711.49,0.00014104,2]
[331608538,1720578761360,-4790.22,0.00014104,2]
[331608539,1720578761369,-3071.88,0.00014104,2]
[331608540,1720578761378,-500.0,0.00014104,2]
[331608541,1720578761389,-5027.3,0.00014104,2]
[331608542,1720578761398,-500.0,0.00014104,2]
[331608543,1720578761407,-500.0,0.00014104,2]
[331608544,1720578761417,-500.0,0.00014104,2]
[331608545,1720578761426,-500.0,0.00014104,2]
[331608546,1720578761435,-500.0,0.00014104,2]
[331608547,1720578761444,-4204.27,0.00014104,2]
[331608548,1720578761453,-500.0,0.00014104,2]
[331608549,1720578761462,-3445.23,0.00014104,2]
[331608550,1720578761471,-500.0,0.00014104,2]
[331608551,1720578761480,-3565.67,0.00014104,2]
[331608552,1720578761489,-500.0,0.00014104,2]
[331608553,1720578761498,-500.0,0.00014104,2]
[331608554,1720578761507,-500.0,0.00014104,2]
[331608555,1720578761516,-500.0,0.00014104,2]
[331608556,1720578761525,-500.0,0.00014104,2]
[331608557,1720578761534,-500.0,0.00014104,2]
[331608558,1720578761543,-500.0,0.00014104,2]
[331608559,1720578761552,-500.0,0.00014104,2]
[331608560,1720578761562,-331.12362502,0.00014104,2]
[331608561,1720578761571,-500.0,0.00014104,2]
[331608562,1720578761580,-500.0,0.00014104,2]
[331608563,1720578761589,-500.0,0.00014104,2]
[331608564,1720578761599,-500.0,0.00014104,2]
[331608565,1720578761608,-150.0,0.00014105,2]
[331608566,1720578761616,-500.0,0.00014106,2]
[331608567,1720578761626,-500.0,0.00014106,2]
[331608568,1720578761637,-500.0,0.00014106,2]
[331608569,1720578761646,-500.0,0.00014106,2]
[331608570,1720578761655,-500.0,0.00014106,2]
[331608571,1720578761664,-500.0,0.00014106,2]
[331608572,1720578761673,-500.0,0.00014106,2]
[331608573,1720578761682,-500.0,0.00014106,2]
[331608574,1720578761691,-500.0,0.00014106,2]
[331608575,1720578761700,-500.0,0.00014106,2]
[331608576,1720578761710,-500.0,0.00014106,2]
[331608577,1720578761720,-500.0,0.00014106,2]
[331608578,1720578761729,-500.0,0.00014106,2]
[331608579,1720578761738,-271.25683837,0.00014106,2]
[331608580,1720578761748,-500.0,0.00014106,2]
[331608581,1720578761757,-500.0,0.00014106,2]
[331608582,1720578761767,-500.0,0.00014106,2]
[331608583,1720578761776,-500.0,0.00014106,2]
[331608584,1720578761786,-500.0,0.00014106,2]
[331608585,1720578761795,-763.52,0.00014106,2]
[331608586,1720578761804,-500.0,0.00014106,2]
[331608587,1720578761813,-502.65,0.00014106,2]
[331608588,1720578761822,-500.0,0.00014106,2]
[331608589,1720578761832,-500.0,0.00014106,2]
[331608590,1720578761841,-500.0,0.00014106,2]
[331608591,1720578761850,-500.0,0.00014106,2]
[331608592,1720578761860,-1198.34,0.00014106,2]
[331608593,1720578761869,-500.0,0.00014106,2]
[331608594,1720578761879,-500.0,0.00014106,2]
[331608595,1720578761891,-500.0,0.00014106,2]
[331608596,1720578761900,-500.0,0.00014106,2]
[331608597,1720578761909,-500.0,0.00014106,2]
[331608598,1720578761918,-197.62120289,0.00014106,2]
[331608599,1720578761927,-500.0,0.00014106,2]
[331608600,1720578761936,-500.0,0.00014106,2]
[331608601,1720578761945,-500.0,0.00014106,2]
[331608602,1720578761955,-500.0,0.00014106,2]
[331608603,1720578761965,-500.0,0.00014106,2]
[331608604,1720578761975,-500.0,0.00014106,2]
[331608605,1720578761984,-2535.35,0.00014106,2]
[331608606,1720578761993,-1721.5,0.00014106,2]
[331608607,1720578762003,-500.0,0.00014106,2]
[331608608,1720578762012,-1081.05,0.00014106,2]
[331608609,1720578762022,-500.0,0.00014106,2]
[331608610,1720578762031,-1050.05,0.00014106,2]
[331608611,1720578762041,-500.0,0.00014106,2]
[331608612,1720578762050,-500.0,0.00014106,2]
[331608613,1720578762059,-1586.28,0.00014106,2]
[331608614,1720578762068,-1401.84,0.00014106,2]
[331608615,1720578762077,-555.32,0.00014106,2]
[331608616,1720578762086,-500.0,0.00014106,2]
[331608617,1720578762095,-805.75,0.00014106,2]
[331608618,1720578762104,-500.0,0.00014106,2]
[331608619,1720578762113,-562.59,0.00014106,2]
[331608620,1720578762122,-971.0,0.00014106,2]
[331608621,1720578762131,-1144.48,0.00014106,2]
[331608622,1720578762142,-500.0,0.00014106,2]
[331608623,1720578762151,-1961.0,0.00014106,2]
[331608624,1720578762161,-3629.43,0.00014106,2]
[331608625,1720578762170,-934.96,0.00014106,2]
[331608626,1720578762180,-1598.19,0.00014106,2]
[331608627,1720578762191,-500.0,0.00014106,2]
[331608628,1720578762202,-2872.97,0.00014106,2]
[331608629,1720578762211,-1527.09,0.00014106,2]
[331608630,1720578762222,-1945.05,0.00014106,2]
[331608631,1720578762232,-500.0,0.00014106,2]
[331608632,1720578762243,-961.55,0.00014106,2]
[331608633,1720578762252,-500.0,0.00014106,2]
[331608634,1720578762265,-665.47,0.00014106,2]
[331608635,1720578762274,-716.9,0.00014106,2]
[331608636,1720578762284,-827.23,0.00014106,2]
[331608637,1720578762293,-500.0,0.00014106,2]
[331608638,1720578762302,-500.0,0.00014106,2]
[331608639,1720578762312,-2735.66,0.00014106,2]
[331608640,1720578762321,-500.0,0.00014106,2]
[331608641,1720578762330,-500.0,0.00014106,2]
[331608642,1720578762339,-3892.01,0.00014106,2]
[331608643,1720578762348,-1267.38,0.00014106,2]
[331608644,1720578762358,-3117.94,0.00014106,2]
[331608645,1720578762367,-1066.11,0.00014106,2]
[331608646,1720578762376,-1522.71,0.00014106,2]
[331608647,1720578762386,-500.0,0.00014106,2]
[331608648,1720578762395,-500.0,0.00014106,2]
[331608649,1720578762404,-670.19,0.00014106,2]
[331608650,1720578762414,-1870.5,0.00014106,2]
[331608651,1720578762423,-2965.75,0.00014106,2]
[331608652,1720578762433,-1687.18,0.00014106,2]
[331608653,1720578762442,-1370.71,0.00014106,2]
[331608654,1720578762451,-500.0,0.00014106,2]
[331608655,1720578762460,-2553.08,0.00014106,2]
[331608656,1720578762469,-640.08,0.00014106,2]
[331608657,1720578762479,-603.72,0.00014106,2]
[331608658,1720578762488,-500.0,0.00014106,2]
[331608659,1720578762498,-827.94,0.00014106,2]
[331608660,1720578762507,-1887.82,0.00014106,2]
[331608661,1720578762516,-500.0,0.00014106,2]
[331608662,1720578762525,-835.89,0.00014106,2]
[331608663,1720578762534,-500.0,0.00014106,2]
[331608664,1720578762545,-1017.28,0.00014106,2]
[331608665,1720578762555,-543.56,0.00014106,2]
[331608666,1720578762566,-1059.77,0.00014106,2]
[331608667,1720578762575,-815.72,0.00014106,2]
[331608668,1720578762584,-1730.67,0.00014106,2]
[331608669,1720578762593,-500.0,0.00014106,2]
[331608670,1720578762603,-500.0,0.00014106,2]
[331608671,1720578762613,-2447.23,0.00014106,2]
[331608672,1720578762625,-500.0,0.00014106,2]
[331608673,1720578762635,-847.02,0.00014106,2]
[331608674,1720578762644,-2703.75,0.00014106,2]
[331608675,1720578762653,-609.31,0.00014106,2]
[331608676,1720578762663,-728.38,0.00014106,2]
[331608677,1720578762673,-500.0,0.00014106,2]
[331608678,1720578762683,-154.91613819,0.00014106,2]
[331608679,1720578762692,-500.0,0.00014106,2]
[331608680,1720578762703,-500.0,0.00014106,2]
[331608681,1720578762714,-3395.91,0.00014106,2]
[331608682,1720578762725,-500.0,0.00014106,2]
[331608683,1720578762735,-500.0,0.00014106,2]
[331608684,1720578762745,-624.42,0.00014106,2]
[331608685,1720578762755,-1579.22,0.00014106,2]
[331608686,1720578762765,-2415.8,0.00014106,2]
[331608687,1720578762774,-500.0,0.00014106,2]
[331608688,1720578762784,-500.0,0.00014106,2]
[331608689,1720578762793,-500.0,0.00014106,2]
[331608690,1720578762803,-3634.66,0.00014106,2]
[331608691,1720578762812,-521.66,0.00014106,2]
[331608692,1720578762822,-1067.34,0.00014106,2]
[331608693,1720578762831,-500.0,0.00014106,2]
[331608694,1720578762841,-500.0,0.00014106,2]
[331608695,1720578762850,-500.0,0.00014106,2]
[331608696,1720578762860,-777.52,0.00014106,2]
[331608697,1720578762869,-699.68,0.00014106,2]
[331608698,1720578762880,-500.0,0.00014106,2]
[331608699,1720578762893,-500.0,0.00014106,2]
[331608700,1720578762902,-642.63,0.00014106,2]
[331608701,1720578762911,-775.83,0.00014106,2]
[331608702,1720578762923,-500.0,0.00014106,2]
[331608703,1720578762932,-637.16,0.00014106,2]
[331608704,1720578762942,-500.0,0.00014106,2]
[331608705,1720578762951,-222.65399102,0.00014106,2]
[331608706,1720578762960,-1225.75,0.00014106,2]
[331608707,1720578762970,-1404.23,0.00014106,2]
[331608708,1720578762979,-1056.74,0.00014106,2]
[331608709,1720578762989,-500.0,0.00014106,2]
[331608710,1720578762998,-500.0,0.00014106,2]
[331608711,1720578763007,-1172.82,0.00014106,2]
[331608712,1720578763016,-921.6,0.00014106,2]
[331608713,1720578763025,-500.0,0.00014106,2]
[331608714,1720578763035,-3520.51,0.00014106,2]
[331608715,1720578763044,-1536.65,0.00014106,2]
[331608716,1720578763054,-500.0,0.00014106,2]
[331608717,1720578763064,-992.28,0.00014106,2]
[331608718,1720578763072,-802.56,0.00014106,2]
[331608719,1720578763081,-1307.53,0.00014106,2]
[331608720,1720578763091,-1302.11,0.00014106,2]
[331608721,1720578763101,-625.12,0.00014106,2]
[331608722,1720578763110,-500.0,0.00014106,2]
[331608723,1720578763120,-1439.27,0.00014106,2]
[331608724,1720578763130,-896.64,0.00014106,2]
[331608725,1720578763141,-500.0,0.00014106,2]
[331608726,1720578763152,-500.0,0.00014106,2]
[331608727,1720578763161,-500.0,0.00014106,2]
[331608728,1720578763171,-2630.86,0.00014106,2]
[331608729,1720578763180,-500.0,0.00014106,2]
[331608730,1720578763190,-2834.79,0.00014106,2]
[331608731,1720578763200,-873.1,0.00014106,2]
[331608732,1720578763209,-500.0,0.00014106,2]
[331608733,1720578763219,-1346.21,0.00014106,2]
[331608734,1720578763229,-500.0,0.00014106,2]
[331608735,1720578763238,-2267.62,0.00014106,2]
[331608736,1720578763248,-500.0,0.00014106,2]
[331608737,1720578763257,-500.0,0.00014106,2]
[331608738,1720578763267,-2296.37,0.00014106,2]
[331608739,1720578763276,-2559.64,0.00014106,2]
[331608740,1720578763286,-500.0,0.00014106,2]
[331608741,1720578763294,-500.0,0.00014106,2]
[331608742,1720578763304,-1289.97,0.00014106,2]
[331608743,1720578763313,-1442.58,0.00014106,2]
[331608744,1720578763323,-553.69,0.00014106,2]
[331608745,1720578763332,-905.13,0.00014106,2]
[331608746,1720578763342,-743.33,0.00014106,2]
[331608747,1720578763351,-2451.31,0.00014106,2]
[331608748,1720578763360,-851.17,0.00014106,2]
[331608749,1720578763370,-1157.04,0.00014106,2]
[331608750,1720578763380,-500.0,0.00014106,2]
[331608751,1720578763391,-625.31,0.00014106,2]
[331608752,1720578763400,-937.39,0.00014106,2]
[331608753,1720578763410,-1849.26,0.00014106,2]
[331608754,1720578763419,-500.0,0.00014106,2]
[331608755,1720578763428,-500.0,0.00014106,2]
[331608756,1720578763438,-1371.39,0.00014106,2]
[331608757,1720578763447,-1267.61,0.00014106,2]
[331608758,1720578763457,-226.83804162,0.00014106,2]
[331608759,1720578763467,-500.0,0.00014106,2]
[331608760,1720578763476,-1742.41,0.00014106,2]
[331608761,1720578763486,-1913.5,0.00014106,2]
[331608762,1720578763496,-1874.79,0.00014106,2]
[331608763,1720578763506,-500.0,0.00014106,2]
[331608764,1720578763514,-685.43,0.00014106,2]
[331608765,1720578763524,-1951.28,0.00014106,2]
[331608766,1720578763535,-1263.54,0.00014106,2]
[331608767,1720578763545,-1299.39,0.00014106,2]
[331608768,1720578763555,-500.0,0.00014106,2]
[331608769,1720578763565,-500.0,0.00014106,2]
[331608770,1720578763575,-3224.97,0.00014106,2]
[331608771,1720578763584,-500.0,0.00014106,2]
[331608772,1720578763594,-500.0,0.00014106,2]
[331608773,1720578763603,-766.4,0.00014106,2]
[331608774,1720578763612,-1216.68,0.00014106,2]
[331608775,1720578763622,-500.0,0.00014106,2]
[331608776,1720578763631,-500.0,0.00014106,2]
[331608777,1720578763641,-2106.28,0.00014106,2]
[331608778,1720578763651,-500.0,0.00014106,2]
[331608779,1720578763660,-1864.28,0.00014106,2]
[331608780,1720578763670,-522.69,0.00014106,2]
[331608781,1720578763680,-1779.04,0.00014106,2]
[331608782,1720578763690,-2013.32,0.00014106,2]
[331608783,1720578763700,-1257.04,0.00014106,2]
[331608784,1720578763709,-646.01,0.00014106,2]
[331608785,1720578763718,-500.0,0.00014106,2]
[331608786,1720578763728,-974.19,0.00014106,2]
[331608787,1720578763737,-2316.42,0.00014106,2]
[331608788,1720578763747,-2232.85,0.00014106,2]
[331608789,1720578763757,-1971.1,0.00014106,2]
[331608790,1720578763766,-709.55,0.00014106,2]
[331608791,1720578763775,-910.78,0.00014106,2]
[331608792,1720578763784,-2149.21,0.00014106,2]
[331608793,1720578763794,-500.0,0.00014106,2]
[331608794,1720578763804,-1878.79,0.00014106,2]
[331608795,1720578763815,-500.0,0.00014106,2]
[331608796,1720578763825,-500.0,0.00014106,2]
[331608797,1720578763834,-1179.69,0.00014106,2]
[331608798,1720578763843,-503.9,0.00014106,2]
[331608799,1720578763854,-500.0,0.00014106,2]
[331608800,1720578763863,-519.46,0.00014106,2]
[331608801,1720578763874,-1989.11,0.00014106,2]
[331608802,1720578763884,-500.0,0.00014106,2]
[331608803,1720578763898,-2581.87,0.00014106,2]
[331608804,1720578763907,-500.0,0.00014106,2]
[331608805,1720578763916,-500.0,0.00014106,2]
[331608806,1720578763925,-725.01,0.00014106,2]
[331608807,1720578763934,-3518.03,0.00014106,2]
[331608808,1720578763943,-548.36,0.00014106,2]
[331608809,1720578763953,-3021.94,0.00014106,2]
[331608810,1720578763963,-603.17,0.00014106,2]
[331608811,1720578763972,-633.59,0.00014106,2]
[331608812,1720578763981,-2745.68,0.00014106,2]
[331608813,1720578763990,-500.0,0.00014106,2]
[331608814,1720578763999,-1219.41,0.00014106,2]
[331608815,1720578764008,-908.45,0.00014107,2]
[331608816,1720578764017,-661.13,0.00014107,2]
[331608817,1720578764026,-500.0,0.00014107,2]
[331608818,1720578764036,-769.46,0.00014107,2]
[331608819,1720578764045,-3561.78,0.00014107,2]
[331608820,1720578764054,-1343.75,0.00014107,2]
[331608821,1720578764063,-500.0,0.00014107,2]
[331608822,1720578764073,-1383.61,0.00014107,2]
[331608823,1720578764083,-1390.66,0.00014107,2]
[331608824,1720578764092,-2786.81,0.00014107,2]
[331608825,1720578764101,-951.91,0.00014107,2]
[331608826,1720578764110,-500.0,0.00014107,2]
[331608827,1720578764119,-500.0,0.00014107,2]
[331608828,1720578764129,-1100.41,0.00014107,2]
[331608829,1720578764139,-1446.15,0.00014107,2]
[331608830,1720578764149,-1354.86,0.00014107,2]
[331608831,1720578764158,-1173.43,0.00014107,2]
[331608832,1720578764168,-657.2,0.00014107,2]
[331608833,1720578764177,-1316.84,0.00014107,2]
[331608834,1720578764187,-2361.64,0.00014107,2]
[331608835,1720578764196,-714.27,0.00014107,2]
[331608836,1720578764205,-1654.5,0.00014107,2]
[331608837,1720578764214,-500.0,0.00014107,2]
[331608838,1720578764223,-500.0,0.00014107,2]
[331608839,1720578764232,-500.0,0.00014107,2]
[331608840,1720578764241,-1989.03,0.00014107,2]
[331608841,1720578764250,-658.51,0.00014107,2]
[331608842,1720578764260,-896.87,0.00014107,2]
[331608843,1720578764269,-500.0,0.00014107,2]
[331608844,1720578764278,-620.44,0.00014107,2]
[331608845,1720578764288,-602.63,0.00014107,2]
[331608846,1720578764297,-1203.55,0.00014107,2]
[331608847,1720578764306,-500.0,0.00014107,2]
[331608848,1720578764315,-1134.03,0.00014107,2]
[331608849,1720578764324,-521.53,0.00014107,2]
[331608850,1720578764333,-542.03,0.00014107,2]
[331608851,1720578764342,-500.0,0.00014107,2]
[331608852,1720578764352,-621.43,0.00014107,2]
[331608853,1720578764361,-1368.5,0.00014107,2]
[331608854,1720578764371,-500.0,0.00014107,2]
[331608855,1720578764380,-883.15,0.00014107,2]
[331608856,1720578764391,-900.28,0.00014107,2]
[331608857,1720578764400,-596.89,0.00014107,2]
[331608858,1720578764410,-940.85,0.00014107,2]
[331608859,1720578764419,-816.55,0.00014107,2]
[331608860,1720578764429,-1329.26,0.00014107,2]
[331608861,1720578764439,-500.0,0.00014107,2]
[331608862,1720578764448,-500.0,0.00014107,2]
[331608863,1720578764458,-1561.93,0.00014107,2]
[331608864,1720578764467,-500.0,0.00014107,2]
[331608865,1720578764476,-2019.26,0.00014107,2]
[331608866,1720578764486,-1658.03,0.00014107,2]
[331608867,1720578764495,-560.71,0.00014107,2]
[331608868,1720578764504,-638.51,0.00014107,2]
[331608869,1720578764514,-500.0,0.00014107,2]
[331608870,1720578764524,-500.0,0.00014107,2]
[331608871,1720578764533,-512.68,0.00014107,2]
[331608872,1720578764542,-2886.16,0.00014107,2]
[331608873,1720578764552,-789.36,0.00014107,2]
[331608874,1720578764561,-500.0,0.00014107,2]
[331608875,1720578764570,-2338.96,0.00014107,2]
[331608876,1720578764579,-602.31057716,0.00014107,2]
[331608877,1720578764589,-500.0,0.00014107,2]
[331608878,1720578764598,-500.0,0.00014107,2]
[331608879,1720578764607,-837.97,0.00014107,2]
[331608880,1720578764616,-500.0,0.00014107,2]
[331608881,1720578764625,-551.0,0.00014107,2]
[331608882,1720578764635,-583.25,0.00014107,2]
[331608883,1720578764645,-1412.79,0.00014107,2]
[331608884,1720578764655,-1306.82,0.00014107,2]
[331608885,1720578764664,-500.0,0.00014107,2]
[331608886,1720578764674,-500.0,0.00014107,2]
[331608887,1720578764683,-2505.4,0.00014107,2]
[331608888,1720578764692,-853.07,0.00014107,2]
[331608889,1720578764701,-500.0,0.00014107,2]
[331608890,1720578764711,-2776.66,0.00014107,2]
[331608891,1720578764720,-300.59,0.0001411,2]
[331608892,1720578764729,-520.5778938,0.00014111,2]
[331608893,1720578764738,-227.87814094,0.00014111,2]
[331608894,1720578764749,-520.5778938,0.00014123,2]
[331608895,1720578764759,-227.87814094,0.00014123,2]
[331608896,1720578764769,-520.5778938,0.00014134,2]
[331608897,1720578764779,-227.87814094,0.00014134,2]
[331608898,1720578764788,-150.0,0.00014135,2]
[331608899,1720578764798,-4197.77,0.00014136,2]
[331608900,1720578764809,-150.0,0.00014143,2]
[331608901,1720578764819,-520.5778938,0.00014145,2]
[331608902,1720578764829,-227.87814094,0.00014145,2]
[331608903,1720578764838,-3765.5578197,0.00014147,2]
[331608904,1720578764850,-33429.3685864,0.00014147,2]
[331608905,1720578764997,-1826.9435851,0.00014147,2]
[331608906,1720578765007,-757.8,0.00014155,2]
[331608907,1720578765018,-500.0,0.00014155,2]
[331608908,1720578765028,-500.0,0.00014155,2]
[331608909,1720578765039,-636.3,0.00014155,2]
[331608910,1720578765050,-500.0,0.00014155,2]
[331608911,1720578765061,-2069.2422025,0.00014155,2]
[331608912,1720578765071,-2005.69,0.00014155,2]
[331608913,1720578765080,-500.0,0.00014155,2]
[331608914,1720578765090,-500.0,0.00014155,2]
[331608915,1720578765100,-500.0,0.00014155,2]
[331608916,1720578765112,-1486.82,0.00014155,2]
[331608917,1720578765122,-500.0,0.00014155,2]
[331608918,1720578765133,-500.0,0.00014155,2]
[331608919,1720578765143,-500.0,0.00014155,2]
[331608920,1720578765153,-500.0,0.00014155,2]
[331608921,1720578765164,-500.0,0.00014155,2]
[331608922,1720578765173,-181.29930437,0.00014155,2]
[331608923,1720578765183,-500.0,0.00014155,2]
[331608924,1720578765195,-1914.68,0.00014155,2]
[331608925,1720578765206,-500.0,0.00014155,2]
[331608926,1720578765216,-500.0,0.00014155,2]
[331608927,1720578765228,-500.0,0.00014155,2]
[331608928,1720578765240,-500.0,0.00014155,2]
[331608929,1720578765251,-500.0,0.00014155,2]
[331608930,1720578765263,-500.0,0.00014155,2]
[331608931,1720578765273,-500.0,0.00014155,2]
[331608932,1720578765284,-500.0,0.00014155,2]
[331608933,1720578765295,-1000.0,0.00014155,2]
[331608934,1720578765307,-3914.89,0.00014155,2]
[331608935,1720578765317,-500.0,0.00014155,2]
[331608936,1720578765327,-500.0,0.00014155,2]
[331608937,1720578765337,-500.0,0.00014155,2]
[331608938,1720578765347,-500.0,0.00014155,2]
[331608939,1720578765357,-1455.92,0.00014156,2]
[331608940,1720578765367,-500.0,0.00014156,2]
[331608941,1720578765378,-1960.51,0.00014156,2]
[331608942,1720578765388,-2618.57,0.00014156,2]
[331608943,1720578765397,-1029.8,0.00014156,2]
[331608944,1720578765407,-1905.84,0.00014156,2]
[331608945,1720578765418,-2751.51,0.00014156,2]
[331608946,1720578765430,-5036.29,0.00014156,2]
[331608947,1720578765440,-670.86,0.00014156,2]
[331608948,1720578765450,-1711.01,0.00014156,2]
[331608949,1720578765460,-500.0,0.00014156,2]
[331608950,1720578765471,-500.0,0.00014156,2]
[331608951,1720578765481,-500.0,0.00014156,2]
[331608952,1720578765491,-3859.09,0.00014156,2]
[331608953,1720578765502,-1762.08,0.00014156,2]
[331608954,1720578765513,-1456.74,0.00014156,2]
[331608955,1720578765522,-3792.63,0.00014156,2]
[331608956,1720578765531,-1563.93,0.00014156,2]
[331608957,1720578765543,-2172.58,0.00014156,2]
[331608958,1720578765553,-1021.12,0.00014156,2]
[331608959,1720578765562,-1287.44,0.00014156,2]
[331608960,1720578765571,-500.0,0.00014156,2]
[331608961,1720578765583,-2002.94,0.00014156,2]
[331608962,1720578765593,-500.0,0.00014156,2]
[331608963,1720578765603,-2847.29,0.00014156,2]
[331608964,1720578765614,-500.0,0.00014156,2]
[331608965,1720578765623,-1287.82,0.00014156,2]
[331608966,1720578765632,-500.0,0.00014156,2]
[331608967,1720578765642,-500.0,0.00014156,2]
[331608968,1720578765651,-1532.31,0.00014156,2]
[331608969,1720578765663,-18831.15,0.00014156,2]
[331608970,1720578765672,-573.49,0.00014156,2]
[331608971,1720578765682,-507.26,0.00014156,2]
[331608972,1720578765692,-4113.11,0.00014156,2]
[331608973,1720578765702,-1312.78,0.00014156,2]
[331608974,1720578765711,-1834.03,0.00014156,2]
[331608975,1720578765721,-2122.3,0.00014156,2]
[331608976,1720578765732,-5120.22,0.00014156,2]
[331608977,1720578765743,-1279.8,0.00014156,2]
[331608978,1720578765752,-839.66,0.00014156,2]
[331608979,1720578765762,-1175.98,0.00014156,2]
[331608980,1720578765771,-4117.2,0.00014156,2]
[331608981,1720578765780,-1655.36,0.00014156,2]
[331608982,1720578765790,-1896.2,0.00014156,2]
[331608983,1720578765800,-1132.24,0.00014156,2]
[331608984,1720578765809,-606.3,0.00014156,2]
[331608985,1720578765819,-654.8,0.00014156,2]
[331608986,1720578765828,-1131.81,0.00014156,2]
[331608987,1720578765838,-1334.15,0.00014156,2]
[331608988,1720578765848,-500.0,0.00014156,2]
[331608989,1720578765857,-2422.26,0.00014156,2]
[331608990,1720578765868,-1951.99,0.00014156,2]
[331608991,1720578765878,-1116.51,0.00014156,2]
[331608992,1720578765889,-2661.03,0.00014156,2]
[331608993,1720578765898,-1178.8,0.00014156,2]
[331608994,1720578765907,-1200.25,0.00014156,2]
[331608995,1720578765916,-1253.31,0.00014156,2]
[331608996,1720578765925,-1260.1,0.00014156,2]
[331608997,1720578765935,-1418.06,0.00014156,2]
[331608998,1720578765944,-3430.04,0.00014156,2]
[331608999,1720578765954,-500.0,0.00014156,2]
[331609000,1720578765964,-500.0,0.00014156,2]
[331609001,1720578765973,-549.11,0.00014156,2]
[331609002,1720578765983,-500.0,0.00014156,2]
[331609003,1720578765992,-3396.59,0.00014156,2]
[331609004,1720578766002,-500.0,0.00014156,2]
[331609005,1720578766011,-500.0,0.00014156,2]
[331609006,1720578766020,-500.0,0.00014156,2]
[331609007,1720578766029,-1770.78,0.00014156,2]
[331609008,1720578766038,-2530.21,0.00014156,2]
[331609009,1720578766048,-1059.63,0.00014156,2]
[331609010,1720578766057,-1287.82,0.00014156,2]
[331609011,1720578766066,-1544.82,0.00014156,2]
[331609012,1720578766076,-1342.13,0.00014156,2]
[331609013,1720578766085,-756.53,0.00014156,2]
[331609014,1720578766094,-944.74,0.00014156,2]
[331609015,1720578766103,-500.0,0.00014156,2]
[331609016,1720578766113,-1406.5,0.00014156,2]
[331609017,1720578766122,-500.0,0.00014156,2]
[331609018,1720578766131,-1077.77,0.00014156,2]
[331609019,1720578766142,-3328.51,0.00014156,2]
[331609020,1720578766154,-500.0,0.00014156,2]
[331609021,1720578766163,-3783.08,0.00014156,2]
[331609022,1720578766172,-869.72,0.00014156,2]
[331609023,1720578766181,-500.0,0.00014156,2]
[331609024,1720578766190,-257.76734229,0.00014156,2]
[331609025,1720578766200,-3362.6,0.00014156,2]
[331609026,1720578766209,-656.32,0.00014156,2]
[331609027,1720578766219,-504.68,0.00014156,2]
[331609028,1720578766228,-3222.36,0.00014156,2]
[331609029,1720578766238,-1629.29,0.00014156,2]